bitfinex-derivatives/quotes_BTCF0:USTF0_20260113
["timestamp","ask_amount","ask_price","bid_price","bid_amount"]
[1768310065155,0.001,92070.0,92060.0,0.21707494]
[1768310065948,0.010871,92073.0,92060.0,0.21507494]
[1768310066148,0.010871,92073.0,92061.0,0.09602135]
[1768310067066,0.001,92075.0,92061.0,0.09602135]
[1768310067244,0.09884,92075.0,92061.0,0.09602135]
[1768310067642,0.010871,92074.0,92061.0,0.09602135]
[1768310068243,0.001,92070.0,92061.0,0.09602135]
[1768310068857,0.010871,92074.0,92061.0,0.09602135]
[1768310069057,0.011871,92074.0,92061.0,0.10102135]
[1768310069860,0.011871,92074.0,92061.0,0.08202135]
[1768310070761,0.010871,92074.0,92061.0,0.07702135]
[1768310070957,0.09784,92075.0,92061.0,0.08202135]
[1768310071157,0.001,92070.0,92061.0,0.08202135]
[1768310071856,0.09784,92075.0,92061.0,0.08202135]
[1768310072059,0.09784,92075.0,92061.0,0.07702135]
[1768310072258,0.001,92074.0,92061.0,0.08002135]
[1768310072561,0.010871,92075.0,92065.0,0.10530487]
[1768310072763,0.09784,92078.0,92067.0,0.10530487]
[1768310073060,0.09784,92078.0,92067.0,0.09602135]
[1768310073261,0.09784,92078.0,92063.0,0.09602135]
[1768310074059,0.001,92075.0,92063.0,0.09602135]
[1768310074261,0.011871,92075.0,92063.0,0.09602135]
[1768310074966,0.010871,92075.0,92063.0,0.10002135]
[1768310076669,0.09884,92078.0,92063.0,0.10002135]
[1768310076870,0.001,92075.0,92063.0,0.10102135]
[1768310077466,0.010871,92074.0,92063.0,0.07602135]
[1768310077965,0.010871,92074.0,92063.0,0.07302135]
[1768310078771,0.011871,92074.0,92063.0,0.07402135]
[1768310080375,0.010871,92074.0,92063.0,0.07102135]
[1768310080570,0.011871,92074.0,92063.0,0.07602135]
[1768310086677,0.010871,92073.0,92063.0,0.07402135]
[1768310088778,0.010872,92072.0,92063.0,0.07402135]
[1768310088982,0.010872,92071.0,92063.0,0.07302135]
[1768310090595,0.010872,92071.0,92063.0,0.07102135]
[1768310090893,0.010872,92071.0,92063.0,0.07502135]
[1768310091600,0.011872,92071.0,92063.0,0.07602135]
[1768310092290,0.09784,92078.0,92062.0,0.00928352]
[1768310092592,0.09784,92078.0,92063.0,0.006]
[1768310093999,0.001,92071.0,92063.0,0.007]
[1768310094594,0.010871,92073.0,92064.0,0.09341786]
[1768310094796,0.09784,92078.0,92064.0,0.09341786]
[1768310094992,0.09884,92078.0,92064.0,0.09341786]
[1768310095389,0.010871,92073.0,92064.0,0.09341786]
[1768310095795,0.011871,92073.0,92064.0,0.10041786]
[1768310096896,0.011871,92073.0,92064.0,0.007]
[1768310097299,0.010871,92073.0,92062.0,0.10270138]
[1768310097500,0.011871,92073.0,92064.0,0.003]
[1768310098596,0.011871,92073.0,92062.0,0.10270138]
[1768310098899,0.011871,92073.0,92064.0,0.004]
[1768310099989,0.011871,92073.0,92062.0,0.09470138]
[1768310100600,0.011871,92073.0,92062.0,0.09770138]
[1768310100801,0.011871,92073.0,92062.0,0.09641786]
[1768310101598,0.011871,92073.0,92062.0,0.09741786]
[1768310102504,0.010872,92072.0,92062.0,0.09741786]
[1768310102684,0.010872,92070.0,92062.0,0.09741786]
[1768310103406,0.010872,92070.0,92062.0,0.09341786]
[1768310103702,0.001,92073.0,92062.0,0.09441786]
[1768310104295,0.09784,92078.0,92062.0,0.09341786]
[1768310104505,0.00910477,92088.0,92066.0,0.09341786]
[1768310104797,0.01087,92084.0,92066.0,0.09341786]
[1768310104999,0.03950138,92083.0,92066.0,0.09341786]
[1768310105193,0.002,92073.0,92066.0,0.09341786]
[1768310105494,0.01087,92083.0,92066.0,0.09341786]
[1768310105700,0.010871,92075.0,92066.0,0.09341786]
[1768310105900,0.01087,92083.0,92066.0,0.09341786]
[1768310106200,0.02863157,92082.0,92066.0,0.09341786]
[1768310106401,0.010871,92075.0,92066.0,0.09341786]
[1768310107004,0.010871,92075.0,92066.0,0.09441786]
[1768310107597,0.01087,92083.0,92066.0,0.09441786]
[1768310107904,0.001,92075.0,92066.0,0.08141786]
[1768310108404,0.011871,92075.0,92066.0,0.08141786]
[1768310108904,0.010871,92074.0,92066.0,0.08141786]
[1768310109904,0.010871,92074.0,92066.0,0.07741786]
[1768310110105,0.010871,92074.0,92066.0,0.07841786]
[1768310110701,0.010871,92074.0,92066.0,0.07741786]
[1768310110901,0.011871,92074.0,92066.0,0.08241786]
[1768310111102,0.010872,92071.0,92066.0,0.08241786]
[1768310111905,0.001,92074.0,92066.0,0.08241786]
[1768310112297,0.09784,92082.0,92066.0,0.08241786]
[1768310112592,0.02861273,92081.0,92066.0,0.08241786]
[1768310112790,0.02861273,92080.0,92066.0,0.08241786]
[1768310112998,0.02861273,92079.0,92066.0,0.08241786]
[1768310113307,0.02861273,92078.0,92066.0,0.08241786]
[1768310113500,0.010871,92073.0,92066.0,0.08241786]
[1768310113801,0.09784,92082.0,92066.0,0.08241786]
[1768310113802,0.09784,92082.0,92066.0,0.07741786]
[1768310114008,0.001,92071.0,92066.0,0.08241786]
[1768310114305,0.010871,92073.0,92066.0,0.08241786]
[1768310114506,0.00572823,92073.0,92066.0,0.08241786]
[1768310114698,0.00672823,92073.0,92066.0,0.08241786]
[1768310115401,0.00672823,92073.0,92066.0,0.06341786]
[1768310115610,0.00672823,92073.0,92066.0,0.005]
[1768310117008,0.00672823,92073.0,92066.0,0.004]
[1768310117411,0.00672823,92073.0,92067.0,0.09851509]
[1768310117809,0.00572823,92073.0,92067.0,0.09851509]
[1768310118011,0.00672823,92073.0,92067.0,0.09851509]
[1768310119604,0.010872,92072.0,92067.0,0.09851509]
[1768310119800,0.010872,92072.0,92067.0,0.10551509]
[1768310120717,0.010872,92071.0,92067.0,0.10451509]
[1768310122512,0.010872,92071.0,92067.0,0.10251509]
[1768310122918,0.001,92072.0,92067.0,0.10251509]
[1768310123118,0.001,92072.0,92067.0,0.09351509]
[1768310123328,0.010871,92073.0,92067.0,0.08951509]
[1768310123529,0.001,92071.0,92067.0,0.09451509]
[1768310125314,0.01087,92084.0,92067.0,0.09451509]
[1768310125520,0.09784,92082.0,92067.0,0.09956715]
[1768310125717,0.01087,92084.0,92067.0,0.09956715]
[1768310125922,0.02844079,92083.0,92067.0,0.09756715]
[1768310126117,0.01087,92084.0,92067.0,0.09756715]
[1768310126422,0.010871,92078.0,92067.0,0.09756715]
[1768310126616,0.010871,92078.0,92067.0,0.09456715]
[1768310126922,0.010871,92077.0,92067.0,0.09051509]
[1768310127522,0.010871,92076.0,92067.0,0.09151509]
[1768310128421,0.010871,92075.0,92067.0,0.09151509]
[1768310129221,0.010871,92075.0,92067.0,0.09251509]
[1768310130015,0.010871,92075.0,92067.0,0.08951509]
[1768310130222,0.010871,92075.0,92067.0,0.09251509]
[1768310130827,0.010871,92075.0,92067.0,0.06151509]
[1768310131023,0.010871,92075.0,92067.0,0.003]
[1768310131720,0.010871,92078.0,92067.0,0.003]
[1768310131921,0.0206576,92084.0,92067.0,0.003]
[1768310132526,0.0206576,92084.0,92063.0,0.010872]
[1768310132830,0.0206576,92084.0,92067.0,0.003]
[1768310133017,0.0206576,92084.0,92067.0,0.10151509]
[1768310133415,0.010871,92077.0,92067.0,0.09951509]
[1768310135430,0.010871,92076.0,92067.0,0.09951509]
[1768310135834,0.010871,92076.0,92067.0,0.09851509]
[1768310136031,0.010871,92076.0,92067.0,0.09951509]
[1768310136727,0.010871,92076.0,92067.0,0.10151509]
[1768310136936,0.010871,92074.0,92067.0,0.10151509]
[1768310137621,0.010871,92074.0,92067.0,0.10251509]
[1768310138634,0.010871,92074.0,92067.0,0.08251509]
[1768310140231,0.010871,92074.0,92067.0,0.07851509]
[1768310140433,0.010871,92074.0,92067.0,0.08151509]
[1768310141035,0.010871,92074.0,92067.0,0.07851509]
[1768310141231,0.010871,92074.0,92067.0,0.08251509]
[1768310141420,0.01087,92082.0,92067.0,0.08251509]
[1768310141618,0.010871,92076.0,92067.0,0.08251509]
[1768310141933,0.010871,92076.0,92067.0,0.08351509]
[1768310142820,0.0097876,92084.0,92067.0,0.08351509]
[1768310143023,0.010871,92074.0,92067.0,0.08351509]
[1768310144130,0.010871,92074.0,92067.0,0.07851509]
[1768310144432,0.010871,92074.0,92067.0,0.07951509]
[1768310145034,0.010871,92074.0,92067.0,0.08051509]
[1768310145627,0.01087,92083.0,92067.0,0.08051509]
[1768310146221,0.010871,92076.0,92067.0,0.08051509]
[1768310146423,0.010871,92076.0,92067.0,0.06751509]
[1768310146631,0.010871,92076.0,92067.0,0.06551509]
[1768310146821,0.001,92074.0,92067.0,0.06551509]
[1768310147533,0.010871,92075.0,92067.0,0.06551509]
[1768310148328,0.002,92074.0,92067.0,0.06551509]
[1768310150042,0.010871,92077.0,92067.0,0.06551509]
[1768310151139,0.010871,92077.0,92067.0,0.06651509]
[1768310153542,0.010871,92079.0,92067.0,0.06651509]
[1768310154240,0.010871,92079.0,92067.0,0.06551509]
[1768310154441,0.010871,92079.0,92067.0,0.06751509]
[1768310156145,0.09784,92084.0,92067.0,0.06551509]
[1768310156337,0.09784,92084.0,92067.0,0.06751509]
[1768310156638,0.06927628,92084.0,92067.0,0.06751509]
[1768310157541,0.01087,92081.0,92070.0,0.13113512]
[1768310157942,0.01087,92081.0,92071.0,6.804e-05]
[1768310160547,0.10757872,92088.0,92071.0,6.804e-05]
[1768310160956,0.10757872,92088.0,92071.0,0.00106804]
[1768310161164,0.01087,92085.0,92070.0,0.12013512]
[1768310161463,0.01087,92085.0,92070.0,0.13106708]
[1768310161760,0.01087,92085.0,92070.0,0.18238762]
[1768310161961,0.01087,92088.0,92072.0,0.010871]
[1768310162661,0.01087,92086.0,92070.0,0.13106708]
[1768310163164,0.01087,92089.0,92070.0,0.13106708]
[1768310163552,0.001,92085.0,92070.0,0.13106708]
[1768310163747,0.001,92085.0,92061.0,0.010873]
[1768310163948,0.01087,92089.0,92061.0,0.010873]
[1768310163949,0.01087,92089.0,92070.0,0.13106708]
[1768310164152,0.01087,92087.0,92070.0,0.14193908]
[1768310165266,0.01087,92087.0,92070.0,0.14293908]
[1768310165954,0.13106708,92090.0,92070.0,0.14293908]
[1768310167464,0.01087,92088.0,92070.0,0.14193908]
[1768310169168,0.01087,92088.0,92072.0,0.010871]
[1768310169358,0.01087,92088.0,92072.0,0.108711]
[1768310170066,0.01087,92088.0,92078.0,0.13106708]
[1768310170754,0.01087,92088.0,92072.0,0.108711]
[1768310171565,0.01187,92088.0,92072.0,0.108711]
[1768310172162,0.001,92088.0,92077.0,0.010871]
[1768310173065,0.001,92088.0,92078.0,0.13106708]
[1768310173365,0.010869,92092.0,92078.0,0.13106708]
[1768310173570,0.010869,92092.0,92080.0,0.13106708]
[1768310173759,0.010869,92092.0,92080.0,0.11806708]
[1768310173959,0.010869,92092.0,92077.0,0.010871]
[1768310174160,0.001,92088.0,92077.0,0.010871]
[1768310174560,0.001,92088.0,92077.0,0.06148418]
[1768310174760,0.001,92088.0,92077.0,0.010871]
[1768310174972,0.010869,92092.0,92077.0,0.010871]
[1768310175173,0.012869,92092.0,92077.0,0.010871]
[1768310176967,0.010869,92092.0,92077.0,0.014871]
[1768310177274,0.010869,92090.0,92077.0,0.004]
[1768310177872,0.010869,92090.0,92077.0,0.003]
[1768310179574,0.14193608,92090.0,92077.0,0.003]
[1768310180168,0.14193608,92090.0,92074.0,0.010871]
[1768310180373,0.14193608,92090.0,92077.0,0.001]
[1768310181273,0.14193608,92090.0,92074.0,0.010871]
[1768310181465,0.14193608,92090.0,92074.0,0.011871]
[1768310182572,0.15130351,92090.0,92074.0,0.011871]
[1768310183162,0.02023643,92090.0,92074.0,0.011871]
[1768310183364,0.02123643,92090.0,92074.0,0.010871]
[1768310184169,0.02023643,92090.0,92074.0,0.010871]
[1768310184374,0.02123643,92090.0,92074.0,0.010871]
[1768310186169,0.011869,92090.0,92080.0,0.13106708]
[1768310186371,0.13106708,92100.0,92080.0,0.13106708]
[1768310186573,0.0987854,92106.0,92088.0,0.010869]
[1768310186874,0.0987854,92106.0,92082.0,0.00887796]
[1768310186875,0.00936743,92099.0,92083.0,0.09784]
[1768310187066,0.00936743,92095.0,92083.0,0.09784]
[1768310187265,0.010869,92093.0,92083.0,0.09784]
[1768310187468,0.02023643,92093.0,92083.0,0.09784]
[1768310187662,0.010869,92091.0,92083.0,0.09784]
[1768310188375,0.00936743,92093.0,92083.0,0.09784]
[1768310191380,0.00936743,92093.0,92080.0,0.13106708]
[1768310191572,0.00936743,92093.0,92081.0,0.09784]
[1768310192572,0.00936743,92093.0,92083.0,0.001]
[1768310193282,0.00936743,92093.0,92081.0,0.09784]
[1768310193473,0.00936743,92093.0,92081.0,0.09884]
[1768310194381,0.00936743,92093.0,92083.0,0.001]
[1768310195372,0.1096544,92097.0,92083.0,0.001]
[1768310195781,0.11879591,92097.0,92083.0,0.001]
[1768310195982,0.11879591,92097.0,92081.0,0.10871]
[1768310196786,0.11979591,92097.0,92081.0,0.01087]
[1768310196973,0.11979591,92097.0,92081.0,0.10871]
[1768310197482,0.00914151,92096.0,92081.0,0.10871]
[1768310199276,0.00914151,92096.0,92081.0,0.09784]
[1768310199477,0.00914151,92096.0,92081.0,0.08484]
[1768310200183,0.00914151,92096.0,92082.0,0.01087]
[1768310201286,0.00914151,92096.0,92083.0,0.01087]
[1768310201486,0.010868,92099.0,92083.0,0.01087]
[1768310201783,0.02000951,92098.0,92083.0,0.01087]
[1768310202985,0.010869,92097.0,92082.0,0.001]
[1768310203787,0.010869,92097.0,92081.0,0.11132258]
[1768310204689,0.02001051,92097.0,92081.0,0.10871]
[1768310205284,0.010869,92097.0,92083.0,0.00276092]
[1768310205479,0.010868,92099.0,92083.0,0.01363092]
[1768310205786,0.02000951,92099.0,92083.0,0.01363092]
[1768310207088,0.00914151,92099.0,92083.0,0.00276092]
[1768310207288,0.00914151,92099.0,92085.0,0.01087]
[1768310210584,0.010868,92100.0,92089.0,0.13106708]
[1768310210784,0.010868,92100.0,92086.0,0.00294711]
[1768310211175,0.14193508,92100.0,92085.0,0.01187]
[1768310212088,0.14193508,92100.0,92082.0,0.09271352]
[1768310212483,0.14193508,92100.0,92085.0,0.01087]
[1768310213189,0.02000951,92100.0,92085.0,0.01087]
[1768310213396,0.010868,92099.0,92083.0,0.01087]
[1768310213689,0.010868,92097.0,92082.0,0.10871]
[1768310213881,0.010868,92097.0,92086.0,0.001]
[1768310214788,0.010868,92097.0,92083.0,0.001]
[1768310214990,0.010868,92099.0,92083.0,0.001]
[1768310215782,0.02000951,92099.0,92083.0,0.001]
[1768310216390,0.02000951,92099.0,92085.0,0.01087]
[1768310217101,0.001,92097.0,92085.0,0.01087]
[1768310217691,0.02000951,92099.0,92085.0,0.01087]
[1768310217894,0.00914151,92099.0,92086.0,0.01087]
[1768310218476,0.010868,92101.0,92086.0,0.01087]
[1768310219081,0.02000951,92101.0,92086.0,0.01087]
[1768310219485,0.00914151,92100.0,92086.0,0.01087]
[1768310219893,0.00914151,92100.0,92086.0,0.00687]
[1768310222394,0.00914151,92097.0,92084.0,0.01087]
[1768310227887,0.00914151,92097.0,92084.0,0.01287]
[1768310228696,0.00914151,92097.0,92084.0,0.002]
[1768310230389,0.00914151,92097.0,92084.0,0.01187]
[1768310231699,0.00914151,92097.0,92084.0,0.001]
[1768310232801,0.00914151,92097.0,92084.0,0.01187]
[1768310233100,0.00914151,92097.0,92085.0,0.01087]
[1768310234503,0.00914151,92097.0,92085.0,0.01187]
[1768310236996,0.00914151,92097.0,92085.0,0.01287]
[1768310237702,0.00914151,92097.0,92085.0,0.01087]
[1768310237895,0.00914151,92097.0,92085.0,0.01287]
[1768310240398,0.01214151,92097.0,92085.0,0.01087]
[1768310241309,0.00928198,92096.0,92085.0,0.01087]
[1768310241510,0.00928198,92096.0,92083.0,0.09784]
[1768310242199,0.00928198,92094.0,92083.0,0.09784]
[1768310242610,0.00928198,92094.0,92083.0,0.08584]
[1768310244312,0.01128198,92094.0,92083.0,0.08584]
[1768310244500,0.002,92094.0,92083.0,0.08584]
[1768310245401,0.002,92094.0,92082.0,0.01087]
[1768310245605,0.002,92094.0,92083.0,0.09784]
[1768310245807,0.002,92094.0,92084.0,0.01087]
[1768310246007,0.00928198,92098.0,92084.0,0.01087]
[1768310247615,0.00928198,92098.0,92084.0,0.01187]
[1768310250107,0.00928198,92098.0,92084.0,0.01387]
[1768310250815,0.00928198,92098.0,92084.0,0.01087]
[1768310251113,0.00928198,92098.0,92084.0,0.01387]
[1768310251713,0.00928198,92098.0,92084.0,0.01087]
[1768310251913,0.00928198,92098.0,92084.0,0.01387]
[1768310257315,0.00928198,92098.0,92084.0,0.01087]
[1768310257618,0.00928198,92098.0,92084.0,0.01387]
[1768310258118,0.00928198,92098.0,92084.0,0.01087]
[1768310258309,0.010868,92097.0,92083.0,0.09784]
[1768310259812,0.010868,92097.0,92083.0,0.09984]
[1768310260314,0.00928198,92098.0,92083.0,0.09984]
[1768310260519,0.00928198,92098.0,92084.0,0.01087]
[1768310261512,0.00928198,92098.0,92084.0,0.00687]
[1768310263120,0.00928198,92098.0,92085.0,0.01087]
[1768310264923,0.00928198,92098.0,92085.0,0.01587]
[1768310267213,0.00928198,92098.0,92085.0,0.01487]
[1768310269321,0.00928198,92098.0,92083.0,0.08981055]
[1768310269521,0.00928198,92098.0,92085.0,0.01087]
[1768310270521,0.01028198,92098.0,92085.0,0.01087]
[1768310271028,0.02114998,92098.0,92083.0,0.08981055]
[1768310271216,0.01028198,92098.0,92084.0,0.01087]
[1768310272123,0.001,92098.0,92084.0,0.01379398]
[1768310272623,0.001,92098.0,92084.0,0.01087]
[1768310274624,0.00949146,92088.0,92070.0,0.00328753]
[1768310274927,0.01087,92083.0,92071.0,0.09784]
[1768310275316,0.00949146,92085.0,92071.0,0.09784]
[1768310275928,0.00949146,92085.0,92071.0,0.108712]
[1768310277729,0.002,92083.0,92071.0,0.108712]
[1768310278428,0.00949146,92085.0,92071.0,0.108712]
[1768310278429,0.01149146,92085.0,92071.0,0.108712]
[1768310279230,0.00949146,92085.0,92071.0,0.108712]
[1768310279526,0.00949146,92085.0,92072.0,0.09784]
[1768310280126,0.00949146,92085.0,92072.0,0.108711]
[1768310280422,0.10273582,92089.0,92072.0,0.108711]
[1768310280627,0.09186582,92089.0,92072.0,0.09784]
[1768310280829,0.09186582,92089.0,92072.0,0.108711]
[1768310281129,0.001,92085.0,92072.0,0.108711]
[1768310281931,0.10335728,92089.0,92072.0,0.108711]
[1768310282129,0.002,92089.0,92080.0,0.00317626]
[1768310282331,0.010869,92093.0,92080.0,0.00317626]
[1768310282627,0.001,92085.0,92080.0,0.00317626]
[1768310282922,0.001,92085.0,92077.0,0.00317626]
[1768310283729,0.00949146,92096.0,92077.0,0.00317626]
[1768310284427,0.001,92093.0,92077.0,0.00317626]
[1768310285128,0.00949146,92096.0,92077.0,0.00317626]
[1768310285329,0.01149146,92096.0,92077.0,0.00317626]
[1768310285528,0.01149146,92096.0,92080.0,0.01087]
[1768310285923,0.01149146,92096.0,92080.0,0.141872]
[1768310286934,0.00949146,92096.0,92081.0,0.01087]
[1768310287933,0.01049146,92096.0,92081.0,0.01087]
[1768310288533,0.00949146,92096.0,92081.0,0.01087]
[1768310288732,0.00949146,92096.0,92081.0,0.01187]
[1768310289232,0.00949146,92096.0,92081.0,0.001]
[1768310290233,0.01049146,92096.0,92080.0,0.141872]
[1768310290623,0.01049146,92096.0,92080.0,0.01087]
[1768310290823,0.01049146,92096.0,92080.0,0.141872]
[1768310292731,0.001,92096.0,92080.0,0.131002]
[1768310292934,0.00910997,92106.0,92091.0,0.00296727]
[1768310293423,0.00910997,92106.0,92090.0,0.141871]
[1768310294634,0.00910997,92106.0,92092.0,0.010869]
[1768310295033,0.00910997,92106.0,92093.0,0.010869]
[1768310295236,0.00910997,92106.0,92090.0,0.142871]
[1768310295636,0.00910997,92106.0,92091.0,0.010869]
[1768310297036,0.00910997,92106.0,92091.0,0.011869]
[1768310297347,0.00922426,92105.0,92091.0,0.011869]
[1768310298927,0.00922426,92105.0,92091.0,0.010869]
[1768310299128,0.00922426,92105.0,92091.0,0.011869]
[1768310300832,0.00922426,92105.0,92091.0,0.001]
[1768310301335,0.00922426,92104.0,92091.0,0.001]
[1768310301541,0.00922426,92103.0,92091.0,0.001]
[1768310302135,0.00922426,92103.0,92090.0,0.131002]
[1768310302440,0.00922426,92103.0,92091.0,0.001]
[1768310303834,0.00922426,92103.0,92091.0,0.002]
[1768310305243,0.00922426,92103.0,92090.0,0.141871]
[1768310305436,0.00922426,92103.0,92091.0,0.001]
[1768310305928,0.00922426,92103.0,92090.0,0.141871]
[1768310306127,0.00922426,92103.0,92091.0,0.001]
[1768310306736,0.00922426,92103.0,92090.0,0.141871]
[1768310308342,0.00922426,92103.0,92091.0,0.001]
[1768310309039,0.00922426,92103.0,92090.0,0.141871]
[1768310309242,0.00922426,92103.0,92090.0,0.142871]
[1768310309544,0.10706426,92106.0,92090.0,0.142871]
[1768310309844,0.10706426,92106.0,92091.0,0.005]
[1768310310034,0.00922426,92105.0,92091.0,0.005]
[1768310310234,0.00922426,92105.0,92091.0,0.015869]
[1768310310744,0.02009126,92110.0,92093.0,0.010869]
[1768310311043,0.09784,92109.0,92093.0,0.010869]
[1768310311239,0.10706426,92109.0,92093.0,0.010869]
[1768310311542,0.00922426,92108.0,92093.0,0.010869]
[1768310312244,0.10012153,92107.0,92093.0,0.011869]
[1768310312852,0.10012153,92107.0,92093.0,0.010869]
[1768310313742,0.00922426,92107.0,92093.0,0.010869]
[1768310313935,0.00922426,92107.0,92090.0,0.141871]
[1768310314641,0.00922426,92107.0,92093.0,0.001]
[1768310315141,0.00922426,92107.0,92092.0,0.010869]
[1768310315330,0.01022426,92107.0,92092.0,0.010869]
[1768310315838,0.39136,92140.0,92103.0,0.00939732]
[1768310315839,0.0942035,92123.0,92103.0,0.00939732]
[1768310316042,0.09784,92122.0,92110.0,0.131002]
[1768310316243,0.131002,92120.0,92103.0,0.02026532]
[1768310316433,0.1920435,92122.0,92105.0,0.010867]
[1768310316747,0.131002,92120.0,92105.0,0.010867]
[1768310317150,0.2029095,92122.0,92105.0,0.010867]
[1768310317645,0.0978,92122.0,92110.0,0.131002]
[1768310318139,0.10778838,92122.0,92110.0,0.131002]
[1768310319247,0.10778838,92122.0,92110.0,0.132002]
[1768310319751,0.0978,92121.0,92110.0,0.113002]
[1768310320638,0.0978,92121.0,92110.0,0.112002]
[1768310321451,0.001,92121.0,92110.0,0.112002]
[1768310321650,0.0978,92120.0,92110.0,0.112002]
[1768310322249,0.002,92121.0,92110.0,0.112002]
[1768310322453,0.0978,92120.0,92110.0,0.112002]
[1768310323145,0.002,92121.0,92110.0,0.112002]
[1768310323445,0.0978,92120.0,92110.0,0.112002]
[1768310323951,0.0978,92120.0,92110.0,0.113002]
[1768310325933,0.0978,92120.0,92110.0,0.001]
[1768310326250,0.0978,92120.0,92110.0,0.132002]
[1768310326751,0.0978,92120.0,92110.0,0.131002]
[1768310326942,0.228802,92120.0,92110.0,0.002]
[1768310327250,0.010866,92118.0,92100.0,0.13575631]
[1768310327451,0.02085438,92118.0,92100.0,0.131002]
[1768310327650,0.00998838,92113.0,92100.0,0.131002]
[1768310331452,0.00998838,92113.0,92100.0,0.133002]
[1768310331645,0.010866,92115.0,92100.0,0.14513732]
[1768310332042,0.02085438,92115.0,92100.0,0.133002]
[1768310332339,0.00998838,92098.0,92080.0,0.01213532]
[1768310332657,0.131002,92090.0,92072.0,0.01213532]
[1768310332844,0.01087,92085.0,92072.0,0.01213532]
[1768310333045,0.131002,92090.0,92072.0,0.01213532]
[1768310333046,0.01087,92088.0,92072.0,0.01213532]
[1768310334058,0.00998838,92091.0,92073.0,0.010871]
[1768310334247,0.00998838,92091.0,92080.0,0.011]
[1768310335053,0.001,92088.0,92077.0,0.01888703]
[1768310335256,0.001,92088.0,92077.0,0.00088703]
[1768310336356,0.001,92091.0,92080.0,0.009]
[1768310337961,0.006,92088.0,92077.0,0.01175803]
[1768310338645,0.006,92091.0,92077.0,0.01175803]
[1768310339454,0.005,92088.0,92077.0,0.01175803]
[1768310340565,0.005,92088.0,92077.0,0.00088703]
[1768310340953,0.011,92091.0,92077.0,0.00088703]
[1768310341762,0.01,92088.0,92077.0,0.01175803]
[1768310342455,0.009,92091.0,92077.0,0.01175803]
[1768310343054,0.009,92091.0,92077.0,0.010871]
[1768310343864,0.00998838,92095.0,92077.0,0.010871]
[1768310344063,0.01,92088.0,92077.0,0.010871]
[1768310344679,0.011,92091.0,92077.0,0.010871]
[1768310345467,0.00998838,92095.0,92077.0,0.010871]
[1768310345765,0.016,92088.0,92077.0,0.011871]
[1768310346767,0.016,92088.0,92077.0,0.001]
[1768310347169,0.011,92091.0,92074.0,0.01235136]
[1768310347468,0.00965899,92090.0,92072.0,0.010871]
[1768310347676,0.00965899,92084.0,92066.0,0.0978]
[1768310347971,0.00965899,92082.0,92066.0,0.0978]
[1768310348166,0.00965899,92082.0,92067.0,0.010872]
[1768310349370,0.00965899,92082.0,92069.0,0.010872]
[1768310349875,0.00965899,92082.0,92067.0,0.010872]
[1768310350862,0.00965899,92082.0,92066.0,0.0978]
[1768310350863,0.00965899,92082.0,92069.0,0.010872]
[1768310352872,0.00965899,92082.0,92066.0,0.0978]
[1768310353575,0.00965899,92082.0,92069.0,0.010872]
[1768310354779,0.00965899,92082.0,92069.0,0.012872]
[1768310356271,0.00965899,92082.0,92071.0,0.010871]
[1768310358177,0.00965899,92082.0,92071.0,0.013871]
[1768310358865,0.00965899,92082.0,92071.0,0.012871]
[1768310360578,0.00965899,92082.0,92066.0,0.091671]
[1768310360774,0.01765899,92082.0,92071.0,0.001]
[1768310361372,0.00965899,92082.0,92070.0,0.010872]
[1768310361577,0.01765899,92082.0,92071.0,0.001]
[1768310362076,0.00982442,92081.0,92071.0,0.001]
[1768310363281,0.00982442,92081.0,92070.0,0.010872]
[1768310363982,0.00982442,92081.0,92071.0,0.001]
[1768310364678,0.00982442,92081.0,92071.0,0.010871]
[1768310366676,0.01682442,92081.0,92071.0,0.011871]
[1768310372677,0.00982442,92081.0,92071.0,0.013871]
[1768310373774,0.00982442,92081.0,92071.0,0.003]
[1768310374487,0.00982442,92081.0,92040.0,0.13104232]
[1768310374488,0.09246867,92076.0,92050.0,0.00869268]
[1768310374698,0.09834247,92054.0,92031.0,0.05264479]
[1768310374875,0.01087599,92048.0,92028.0,0.010877]
[1768310375187,0.01087599,92048.0,92028.0,0.05265959]
[1768310375686,0.0001305,92047.0,92028.0,0.05265959]
[1768310376087,0.0001305,92047.0,92026.0,0.01963107]
[1768310376287,0.0001305,92047.0,92036.0,0.010876]
[1768310376788,0.0001305,92047.0,92035.0,0.010876]
[1768310378689,0.0001305,92047.0,92035.0,0.011876]
[1768310379385,0.0001305,92047.0,92037.0,0.010876]
[1768310380290,0.0001305,92047.0,92039.0,0.010875]
[1768310380989,0.01087599,92053.0,92048.0,0.010874]
[1768310381292,0.09784,92056.0,92049.0,0.010874]
[1768310381492,0.09784,92056.0,92046.0,0.010874]
[1768310381787,0.09784,92056.0,92037.0,0.00473334]
[1768310382594,0.10084,92056.0,92037.0,0.00473334]
[1768310383088,0.10084,92056.0,92043.0,0.010875]
[1768310383291,0.10184,92056.0,92043.0,0.010875]
[1768310383682,0.11271599,92056.0,92043.0,0.010875]
[1768310384791,0.11871599,92056.0,92043.0,0.010875]
[1768310385380,0.10871599,92056.0,92043.0,0.010875]
[1768310385580,0.11871599,92056.0,92043.0,0.010875]
[1768310387791,0.10871599,92056.0,92043.0,0.010875]
[1768310387995,0.01087599,92056.0,92042.0,0.010875]
[1768310388182,0.10921846,92051.0,92039.0,0.010875]
[1768310388386,0.01087599,92050.0,92039.0,0.010875]
[1768310389286,0.01087599,92050.0,92026.0,0.05238949]
[1768310389795,0.01087599,92050.0,92039.0,0.010875]
[1768310390497,0.01087599,92049.0,92039.0,0.010875]
[1768310391587,0.01087599,92049.0,92039.0,0.011875]
[1768310392194,0.01087599,92049.0,92039.0,0.010875]
[1768310392393,0.01087599,92049.0,92039.0,0.011875]
[1768310392699,0.01087599,92049.0,92039.0,0.001]
[1768310393896,0.01087599,92049.0,92039.0,0.011875]
[1768310394099,0.01087599,92049.0,92039.0,0.010875]
[1768310394100,0.01987599,92049.0,92039.0,0.010875]
[1768310395400,0.01987599,92049.0,92039.0,0.1420149]
[1768310396097,0.01987599,92049.0,92040.0,0.010875]
[1768310396490,0.01087599,92048.0,92040.0,0.010875]